bitfinex/quotes_BTCUSD_20220105
["timestamp","ask_amount","ask_price","bid_price","bid_amount"]
[1641418300154,0.15754125,43512.0,43500.0,10.61856679]
[1641418300155,0.5236,43510.0,43500.0,8.0949995]
[1641418300356,0.61321306,43501.0,43500.0,5.96308493]
[1641418300554,0.2261631,43501.0,43500.0,5.95308493]
[1641418300826,0.07750871,43501.0,43500.0,5.94808493]
[1641418301028,0.07371,43501.0,43500.0,5.94808493]
[1641418301326,0.05222751,43502.0,43500.0,5.54287773]
[1641418301530,0.05211751,43502.0,43500.0,2.20514638]
[1641418301723,0.05200751,43502.0,43488.0,0.20908505]
[1641418301931,0.05200751,43502.0,43466.0,0.29877006]
[1641418301932,0.0053902,43498.0,43466.0,0.29877006]
[1641418302129,0.0053902,43498.0,43482.0,0.10365764]
[1641418302130,0.0626042,43498.0,43482.0,0.10365764]
[1641418302330,0.0626042,43498.0,43486.0,0.40859194]
[1641418302331,1.0238,43489.0,43486.0,0.40859194]
[1641418302535,0.15,43487.0,43486.0,0.13941687]
[1641418302729,0.15,43487.0,43482.0,0.08305264]
[1641418302730,0.54548,43487.0,43482.0,0.08245264]
[1641418302926,0.54548,43487.0,43466.0,0.0132814]
[1641418302927,0.44919,43487.0,43466.0,0.0132814]
[1641418303130,0.44919,43487.0,43463.0,0.01351875]
[1641418303131,0.40634138,43482.0,43463.0,0.00321875]
[1641418303326,0.40634138,43482.0,43462.0,0.16803667]
[1641418303327,0.35,43468.0,43462.0,0.14045542]
[1641418303534,0.35,43468.0,43462.0,0.10935542]
[1641418303535,0.04321733,43463.0,43462.0,0.10935542]
[1641418303727,0.02226458,43462.0,43458.0,0.0084205]
[1641418303943,0.00215458,43462.0,43447.0,0.00345707]
[1641418304237,0.04310733,43448.0,43443.0,0.00462271]
[1641418304462,0.02786,43465.0,43443.0,0.00460158]
[1641418304463,0.52786,43465.0,43443.0,0.00460158]
[1641418304652,0.52786,43465.0,43433.0,0.00137]
[1641418304653,0.00126737,43445.0,43433.0,0.00137]
[1641418304858,0.35,43442.0,43437.0,0.22659981]
[1641418305053,0.2261631,43441.0,43437.0,0.19912756]
[1641418305252,0.411891,43440.0,43437.0,0.19882756]
[1641418305453,0.270102,43440.0,43439.0,0.06]
[1641418305658,6.26e-06,43454.0,43451.0,0.00011]
[1641418305853,0.5,43461.0,43439.0,0.27679411]
[1641418306153,0.40344,43461.0,43454.0,5.8765881]
[1641418306352,0.40344,43461.0,43455.0,0.370058]
[1641418306656,0.40344,43461.0,43450.0,0.00011]
[1641418306657,0.20781447,43456.0,43450.0,0.30045722]
[1641418306856,0.40344,43461.0,43451.0,0.00033358]
[1641418306857,0.3260531,43455.0,43451.0,0.00033358]
[1641418307054,0.370073,43454.0,43451.0,0.00033358]
[1641418307251,0.00619647,43456.0,43454.0,1.829957]
[1641418307252,0.015,43456.0,43454.0,1.829957]
[1641418307453,0.40344,43461.0,43456.0,0.27457482]
[1641418307454,0.0999,43458.0,43456.0,0.27457482]
[1641418307654,0.09849888,43458.0,43457.0,0.59220526]
[1641418307852,0.2,43461.0,43458.0,0.3278918]
[1641418308053,0.325,43459.0,43458.0,0.3278918]
[1641418308302,0.1273495,43486.0,43461.0,0.1137485]
[1641418308500,0.0796,43505.0,43461.0,0.1137485]
[1641418308501,0.2,43491.0,43466.0,0.25701255]
[1641418308697,0.9638,43510.0,43466.0,0.25701255]
[1641418308698,0.2499,43500.0,43468.0,2.7836]
[1641418308899,0.15,43532.0,43468.0,2.7836]
[1641418308900,0.9871,43533.0,43488.0,0.1]
[1641418309098,0.384,43536.0,43488.0,0.1]
[1641418309099,0.3036,43536.0,43524.0,0.42644339]
[1641418309301,0.3036,43536.0,43524.0,0.44750339]
[1641418309302,0.370063,43535.0,43524.0,0.44750339]
[1641418309500,0.04756546,43547.0,43526.0,2.26]
[1641418309699,0.23564777,43558.0,43527.0,0.0419]
[1641418309905,0.0804,43552.0,43536.0,0.01074]
[1641418310198,0.742406,43574.0,43536.0,0.01074]
[1641418310199,0.00342,43577.0,43541.0,0.095]
[1641418310402,0.05,43570.0,43551.0,0.5236]
[1641418310600,0.0999,43576.0,43566.0,0.5236]
[1641418310601,0.05,43574.0,43566.0,0.5236]
[1641418310797,0.04756546,43588.0,43568.0,2.26]
[1641418311002,0.05,43585.0,43570.0,0.00692091]
[1641418311204,0.06878981,43612.0,43578.0,0.01714]
[1641418311205,0.045,43584.0,43578.0,0.01714]
[1641418311400,0.045,43584.0,43569.0,0.40254091]
[1641418311401,0.00632816,43610.0,43577.0,0.37222206]
[1641418311403,2.26,43587.0,43577.0,0.37222206]
[1641418311597,2.26,43587.0,43577.0,0.03546043]
[1641418311598,0.05,43587.0,43577.0,0.03546043]
[1641418311802,0.06878981,43612.0,43587.0,2.26]
[1641418311803,0.16811309,43611.0,43587.0,2.26]
[1641418312058,0.005,43625.0,43607.0,0.06764078]
[1641418312251,0.3192208,43612.0,43607.0,0.08522213]
[1641418312446,0.2261631,43626.0,43606.0,0.01916]
[1641418312447,1.8,43625.0,43606.0,0.01916]
[1641418312646,0.04391,43606.0,43605.0,0.02656]
[1641418312846,0.04391,43606.0,43589.0,0.01508]
[1641418312847,0.28203939,43606.0,43591.0,0.0419]
[1641418313045,0.28203939,43606.0,43589.0,0.01508]
[1641418313046,0.005,43596.0,43589.0,0.01508]
[1641418313246,0.05572926,43606.0,43595.0,0.00129063]
[1641418313451,0.00014703,43596.0,43594.0,0.02561063]
[1641418313648,0.00014703,43596.0,43595.0,0.69705249]
[1641418313852,0.00014703,43596.0,43595.0,0.6111714]
[1641418314148,1.85514703,43596.0,43595.0,0.13862725]
[1641418314353,0.00127,43595.0,43591.0,0.003]
[1641418314552,0.005,43592.0,43578.0,0.0419]
[1641418314750,0.58157968,43578.0,43571.0,0.43696434]
[1641418314949,0.00053723,43594.0,43578.0,2.17]
[1641418315149,0.005,43581.0,43579.0,0.369726]
[1641418315348,0.00621077,43587.0,43580.0,0.366363]
[1641418315550,0.005,43587.0,43580.0,0.27078609]
[1641418315799,0.00123888,43588.0,43581.0,0.77816892]
[1641418315997,0.39,43603.0,43581.0,0.77816892]
[1641418315998,0.00127098,43597.0,43586.0,0.08999999]
[1641418316196,0.05,43619.0,43604.0,0.32646187]
[1641418316396,0.13472902,43620.0,43605.0,0.255602]
[1641418316594,0.07072926,43606.0,43605.0,0.250602]
[1641418316895,0.06174706,43606.0,43605.0,0.00129542]
[1641418317098,0.06174706,43606.0,43605.0,2.50690142]
[1641418317099,0.04674706,43606.0,43605.0,2.50690142]
[1641418317295,0.04674706,43606.0,43605.0,2.55290142]
[1641418317495,0.2,43612.0,43606.0,2.26]
[1641418317692,0.2,43612.0,43607.0,0.0419]
[1641418317893,0.34015281,43611.0,43609.0,0.105]
[1641418318097,0.34015281,43611.0,43596.0,1.438e-05]
[1641418318098,0.0025,43605.0,43596.0,1.438e-05]
[1641418318296,0.095,43597.0,43584.0,0.00120011]
[1641418318498,0.14498562,43587.0,43571.0,0.01001437]
[1641418318698,0.14498562,43577.0,43552.0,0.03241]
[1641418318897,0.35629342,43599.0,43558.0,0.65794401]
[1641418318898,0.56409879,43570.0,43558.0,0.65794401]
[1641418319196,0.56409879,43570.0,43556.0,0.00127668]
[1641418319197,0.13998562,43566.0,43556.0,0.00127668]
[1641418319468,0.13998562,43566.0,43551.0,0.00838287]
[1641418319469,0.6277821,43565.0,43559.0,8.786359]
[1641418319660,2.39620695,43560.0,43558.0,0.003]
[1641418319853,0.13120695,43559.0,43558.0,0.003]
[1641418320054,0.56130114,43570.0,43558.0,0.003]
[1641418320055,0.0429,43570.0,43559.0,0.27375616]
[1641418320256,0.0429,43570.0,43560.0,0.242219]
[1641418320257,0.12120695,43563.0,43560.0,0.242219]
[1641418320459,0.09620695,43567.0,43560.0,5.687585]
[1641418320657,0.00128496,43566.0,43561.0,0.0419]
[1641418320857,0.2261631,43588.0,43561.0,0.316521]
[1641418320858,0.6411631,43588.0,43561.0,0.316521]
[1641418321060,0.61884567,43576.0,43564.0,0.3249322]
[1641418321261,0.59212286,43575.0,43558.0,0.2]
[1641418321457,0.00120204,43569.0,43561.0,0.003]
[1641418321660,0.59212286,43575.0,43561.0,0.003]
[1641418321661,0.03810204,43574.0,43561.0,0.003]
[1641418321857,0.369775,43573.0,43561.0,0.003]
[1641418322059,0.09999999,43569.0,43558.0,0.4]
[1641418322261,0.09999999,43569.0,43558.0,1.00021]
[1641418322262,0.49527907,43559.0,43558.0,1.00021]
[1641418322457,0.2211631,43567.0,43558.0,1.00021]
[1641418322659,0.2211631,43567.0,43530.0,0.1]
[1641418322660,2.24495699,43572.0,43560.0,0.14999305]
[1641418322861,2.24495699,43572.0,43547.0,0.00122597]
[1641418322862,0.15,43565.0,43547.0,0.00122597]
[1641418323060,0.15,43565.0,43512.0,0.229617]
[1641418323061,2.26,43549.0,43512.0,0.22626297]
[1641418323299,0.15,43539.0,43529.0,0.00125538]
[1641418323499,0.369785,43538.0,43504.0,0.25108442]
[1641418323701,0.00114115,43544.0,43537.0,0.62034855]
[1641418323897,5.45974637,43557.0,43537.0,0.62034855]
[1641418323898,0.2261631,43556.0,43537.0,0.62034855]
[1641418324102,5.45938609,43557.0,43540.0,0.00126843]
[1641418324296,0.15734313,43578.0,43554.0,0.00011]
[1641418324500,0.15734313,43578.0,43554.0,0.06367]
[1641418324501,0.7459481,43577.0,43554.0,0.06367]
[1641418324700,0.3761631,43577.0,43568.0,0.6460067]
[1641418324904,0.3761631,43577.0,43568.0,0.7173867]
[1641418324905,0.0999,43573.0,43568.0,0.7173867]
[1641418325098,0.0999,43573.0,43569.0,0.260912]
[1641418325299,0.0999,43573.0,43572.0,1.62213865]
[1641418325502,0.0999,43573.0,43572.0,0.26213865]
[1641418325999,0.0999,43573.0,43572.0,0.9831575]
[1641418326197,0.42125196,43588.0,43572.0,1.1331575]
[1641418326405,0.21880216,43604.0,43572.0,1.1331575]
[1641418326406,0.57,43604.0,43577.0,0.00124393]
[1641418326601,0.28406165,43602.0,43590.0,0.30912857]
[1641418326802,0.369785,43601.0,43590.0,0.08654]
[1641418327075,1.99,43591.0,43590.0,0.08654]
[1641418327273,2.359785,43591.0,43590.0,0.08654]
[1641418327481,0.582949,43591.0,43590.0,0.08654]
[1641418327675,0.265404,43591.0,43590.0,0.36500705]
[1641418327872,0.42,43604.0,43590.0,0.31252605]
[1641418328076,0.42,43604.0,43603.0,0.43706732]
[1641418328277,0.19121858,43612.0,43604.0,2.520654]
[1641418328278,0.59069858,43612.0,43604.0,2.520654]
[1641418328476,0.2499,43618.0,43604.0,2.520654]
[1641418328477,0.2499,43618.0,43611.0,0.00121634]
[1641418328679,0.0999,43623.0,43617.0,0.00127085]
[1641418328875,0.15,43642.0,43622.0,0.00129044]
[1641418329076,0.15,43642.0,43623.0,0.0385]
[1641418329077,0.0999,43637.0,43623.0,0.0385]
[1641418329277,0.0999,43637.0,43636.0,0.49498018]
[1641418329481,0.66999999,43659.0,43636.0,0.49498018]
[1641418329482,0.14116564,43652.0,43636.0,0.92047753]
[1641418329676,0.00126564,43659.0,43642.0,0.00126666]
[1641418329876,0.00126564,43659.0,43643.0,0.260343]
[1641418329877,0.33032,43657.0,43643.0,0.260343]
[1641418330083,1.797011,43656.0,43648.0,0.00129436]
[1641418330279,1.797011,43656.0,43654.0,0.00124715]
[1641418330280,0.84084,43656.0,43654.0,0.00124715]
[1641418330478,0.351855,43656.0,43655.0,2.29979995]
[1641418330703,0.0999,43665.0,43657.0,0.2]
[1641418330898,0.4378,43677.0,43664.0,0.00125176]
[1641418331093,0.4378,43677.0,43676.0,0.00121903]
[1641418331294,0.4378,43677.0,43666.0,0.5228207]
[1641418331494,0.1,43684.0,43676.0,0.09945551]
[1641418331697,0.1,43687.0,43683.0,0.00128452]
[1641418331891,0.1,43685.0,43684.0,0.255087]
[1641418332092,0.22242874,43699.0,43685.0,0.255063]
[1641418332299,0.1,43688.0,43680.0,9.41e-06]
[1641418332494,0.25330978,43690.0,43668.0,0.00127695]
[1641418332495,2.26,43680.0,43668.0,0.00127695]
[1641418332699,2.26,43680.0,43658.0,0.0385]
[1641418332700,0.1,43669.0,43658.0,0.0385]
[1641418332893,0.1,43669.0,43631.0,0.00324]
[1641418332894,0.1,43659.0,43642.0,0.0385]
[1641418333094,0.1,43657.0,43655.0,0.41543926]
[1641418333293,0.00122102,43670.0,43664.0,0.35078317]
[1641418333495,0.13,43690.0,43664.0,0.35078317]
[1641418333696,0.13,43690.0,43673.0,0.0012014]
[1641418333895,0.13,43690.0,43664.0,0.06185]
[1641418334094,0.2261631,43689.0,43680.0,0.41449796]
[1641418334295,0.13,43690.0,43673.0,0.40972079]
[1641418334296,0.13,43690.0,43687.0,0.44394636]
[1641418334542,0.13,43690.0,43687.0,0.50224636]
[1641418334543,0.1,43688.0,43687.0,0.50224636]
[1641418334743,0.1,43688.0,43685.0,0.00123262]
[1641418334942,0.0220648,43701.0,43693.0,0.00129168]
[1641418335140,0.0220648,43701.0,43694.0,0.32805653]
[1641418335346,0.0220648,43701.0,43698.0,0.00122796]
[1641418335347,0.0120648,43701.0,43698.0,0.00122796]
[1641418335544,0.0120648,43701.0,43699.0,0.15842435]
[1641418335745,0.0239541,43712.0,43699.0,0.00123208]
[1641418335945,0.0139972,43720.0,43711.0,0.00124041]
[1641418336145,0.0139972,43720.0,43715.0,0.00128968]
[1641418336346,0.0139972,43720.0,43716.0,0.27308646]
[1641418336546,0.0139669,43724.0,43719.0,0.2]
[1641418336547,1.11e-05,43722.0,43719.0,0.2]
[1641418336743,0.8578,43735.0,43719.0,0.2]
[1641418336946,0.8578,43735.0,43721.0,0.05716]
[1641418337146,0.8578,43735.0,43724.0,0.05]
[1641418337147,0.20804,43735.0,43724.0,0.05]
[1641418337346,0.0280928,43744.0,43733.0,0.03367791]
[1641418337563,0.45807518,43771.0,43741.0,0.13]
[1641418337564,0.0108884,43771.0,43741.0,0.13]
[1641418337747,0.1,43767.0,43751.0,0.00124206]
[1641418337951,0.1,43767.0,43766.0,0.27505673]
[1641418338210,0.4308884,43771.0,43766.0,0.07261]
[1641418338405,0.05002076,43765.0,43751.0,0.40644266]
[1641418338607,0.05002076,43765.0,43734.0,0.21427]
[1641418338608,0.2336137,43753.0,43734.0,0.11427]
[1641418338812,0.2261631,43752.0,43719.0,0.114311]
[1641418339006,0.2261631,43752.0,43719.0,0.51633817]
[1641418339007,0.60293281,43730.0,43719.0,0.51633817]
[1641418339204,0.3336137,43753.0,43711.0,0.307071]
[1641418339205,0.23278079,43751.0,43711.0,0.307071]
[1641418339405,0.3159884,43735.0,43731.0,9.989e-05]
[1641418339607,0.2261631,43744.0,43733.0,0.3015798]
[1641418339806,0.0053902,43750.0,43733.0,0.3015798]
[1641418339807,0.00122122,43739.0,43733.0,0.3015798]
[1641418340004,0.00164879,43750.0,43733.0,0.3015798]
[1641418340204,0.66886699,43747.0,43733.0,0.3015798]
[1641418340404,0.2261631,43746.0,43732.0,0.0144]
[1641418340609,0.00122078,43738.0,43732.0,0.0144]
[1641418340807,0.00122078,43738.0,43731.0,9.989e-05]
[1641418340808,0.00120563,43733.0,43731.0,9.989e-05]
[1641418341008,0.00120563,43733.0,43716.0,0.34185141]
[1641418341009,0.3696,43732.0,43716.0,0.34185141]
[1641418341205,0.00128742,43732.0,43704.0,0.00123431]
[1641418341405,0.00128742,43732.0,43697.0,0.00120131]
[1641418341406,0.34682212,43722.0,43697.0,0.00120131]
[1641418341618,0.34682212,43722.0,43697.0,1.31e-06]
[1641418341804,0.34682212,43722.0,43675.0,0.1]
[1641418341805,0.00599788,43718.0,43675.0,0.1]
[1641418342046,0.00121325,43700.0,43676.0,0.2261631]
[1641418342242,0.00121325,43700.0,43689.0,0.41171955]
[1641418342642,0.00121325,43700.0,43690.0,8.971838]
[1641418342846,0.00121325,43700.0,43692.0,0.00016533]
[1641418343146,0.0385,43736.0,43693.0,0.53556434]
[1641418343147,0.00120616,43711.0,43693.0,0.53556434]
[1641418343345,0.00120616,43711.0,43693.0,12.70099734]
[1641418343542,0.00120616,43711.0,43710.0,0.54674537]
[1641418343742,0.00121829,43718.0,43710.0,0.54674537]
[1641418343946,6.16167693,43743.0,43710.0,0.54674537]
[1641418343947,0.18765166,43735.0,43710.0,15.04992637]
[1641418344146,0.18765166,43738.0,43711.0,14.005206]
[1641418344343,0.18765166,43738.0,43711.0,7.891307]
[1641418344546,0.18765166,43738.0,43737.0,0.3452728]
[1641418344744,0.00128718,43741.0,43737.0,0.3452728]
[1641418344745,0.00128718,43741.0,43737.0,0.05841]
[1641418345043,0.00128718,43741.0,43710.0,0.06373]
[1641418345044,0.00124238,43738.0,43710.0,0.06373]
[1641418345245,0.34065123,43749.0,43694.0,0.11436408]
[1641418345246,0.00120666,43727.0,43694.0,0.11436408]
[1641418345445,0.0804,43744.0,43696.0,0.066929]
[1641418345446,0.22615166,43743.0,43696.0,0.066929]
[1641418345704,0.00123896,43727.0,43718.0,0.27120374]
[1641418345893,0.00123896,43727.0,43722.0,0.3908882]
[1641418346495,0.0012596,43733.0,43722.0,0.3908882]
[1641418346693,0.18765166,43742.0,43722.0,0.3908882]
[1641418346694,0.18765166,43742.0,43729.0,0.28889562]
[1641418346898,0.18765166,43746.0,43729.0,0.35644562]
[1641418347098,0.00122482,43748.0,43729.0,0.35644562]
[1641418347296,0.00122482,43748.0,43730.0,0.24959237]
[1641418347495,0.02285,43745.0,43744.0,0.35755329]
[1641418347696,0.02285,43745.0,43744.0,0.41302329]
[1641418347895,1.46285,43745.0,43744.0,0.41302329]
[1641418348695,1.46285,43745.0,43713.0,0.114325]
[1641418348696,0.02382,43744.0,43713.0,0.114325]
[1641418348898,0.00121158,43732.0,43704.0,0.114348]
[1641418349095,0.0012625,43738.0,43722.0,0.30182979]
[1641418349296,0.0012625,43738.0,43722.0,0.37683979]
[1641418349545,0.0012625,43738.0,43725.0,0.35514251]
[1641418349546,0.0012308,43731.0,43725.0,0.35514251]
[1641418349747,0.0012308,43731.0,43722.0,0.00121797]
[1641418350048,0.00124676,43724.0,43722.0,7.97e-06]
[1641418350246,0.4081,43723.0,43722.0,7.97e-06]
[1641418350450,0.75108169,43723.0,43679.0,0.2499]
[1641418350648,0.75108169,43723.0,43678.0,0.01185655]
[1641418350649,0.00121412,43704.0,43678.0,0.01185655]
[1641418350853,0.00121412,43704.0,43699.0,0.00016848]
[1641418351048,0.00127833,43700.0,43699.0,8.48e-06]
[1641418351250,0.27126956,43698.0,43669.0,0.00011]
[1641418351453,0.51898402,43686.0,43676.0,0.65615792]
[1641418351648,0.42129609,43686.0,43676.0,0.00011]
[1641418352446,0.42129609,43686.0,43678.0,0.00011]
[1641418352850,0.42,43686.0,43678.0,0.00011]
[1641418353294,0.00128524,43712.0,43679.0,7.04]
[1641418353499,0.00128524,43712.0,43682.0,0.1]
[1641418353703,0.00128524,43712.0,43680.0,0.32429783]
[1641418353704,0.18362828,43721.0,43695.0,0.61786032]
[1641418353898,0.18362828,43721.0,43696.0,0.0385]
[1641418354295,0.18362828,43721.0,43696.0,0.095689]
[1641418354494,0.02285,43711.0,43699.0,0.1]
[1641418354697,0.0002,43725.0,43704.0,0.00725515]
[1641418354894,0.00124569,43730.0,43728.0,0.31603175]
[1641418355094,0.00124569,43730.0,43728.0,0.0736]
[1641418355494,1.1302,43729.0,43728.0,0.0686]
[1641418355694,0.00124569,43730.0,43728.0,0.0686]
[1641418355894,0.00124661,43732.0,43730.0,0.55609728]
[1641418356100,0.05,43755.0,43730.0,0.55609728]
[1641418356296,0.00129514,43741.0,43729.0,0.40607745]
[1641418356698,0.157079,43756.0,43729.0,0.40607745]
[1641418356699,1.0134337,43731.0,43730.0,0.26857818]
[1641418356956,1.0134337,43731.0,43730.0,2.46756393]
[1641418357149,1.1260375,43744.0,43731.0,0.6415863]
[1641418357349,4.39825017,43749.0,43739.0,0.00674917]
[1641418357551,4.39825017,43749.0,43748.0,0.00127494]
[1641418357766,0.60271035,43755.0,43748.0,0.09421]
[1641418357951,0.60271035,43755.0,43747.0,0.01652]
[1641418358153,0.60271035,43755.0,43731.0,0.00354483]
[1641418358154,0.2875075,43752.0,43731.0,0.00354483]
[1641418358352,0.0012872,43744.0,43731.0,0.00354483]
[1641418358555,0.88816737,43743.0,43731.0,0.00354483]
[1641418358758,2.26,43732.0,43731.0,0.00354483]
[1641418358952,0.00128614,43733.0,43731.0,0.00354483]
[1641418358953,0.43852319,43733.0,43731.0,0.00354483]
[1641418359156,0.0012089,43726.0,43716.0,0.32624975]
[1641418359352,0.00122134,43721.0,43716.0,0.32624975]
[1641418359553,0.00122134,43721.0,43695.0,0.00121223]
[1641418359752,0.18362828,43730.0,43698.0,0.6431272]
[1641418359753,0.55202374,43707.0,43698.0,0.6431272]
[1641418359953,0.19739629,43726.0,43698.0,0.6431272]
[1641418359954,0.00128536,43704.0,43698.0,0.6431272]
[1641418360155,0.63756399,43724.0,43703.0,0.25515158]
[1641418360353,0.0012684,43707.0,43698.0,0.6431272]
[1641418360555,0.00126132,43703.0,43684.0,0.0572126]
[1641418360813,0.00124392,43707.0,43685.0,0.057206]
[1641418361015,0.00124392,43707.0,43704.0,0.00011751]
[1641418361321,0.71643634,43708.0,43705.0,0.73691653]
[1641418361515,0.31072452,43738.0,43706.0,2.255]
[1641418361517,0.71688165,43709.0,43706.0,2.255]
[1641418361717,0.95524846,43718.0,43710.0,0.05844961]
[1641418361914,0.34213042,43735.0,43724.0,0.26715026]
[1641418362113,1.81230703,43730.0,43724.0,0.06795]
[1641418362313,0.9573491,43727.0,43724.0,0.43815154]
[1641418362518,4.39803326,43745.0,43725.0,0.4111728]
[1641418362714,0.19818234,43744.0,43725.0,0.3790828]
[1641418362913,5.00359353,43745.0,43736.0,0.56285898]
[1641418363113,4.39803326,43745.0,43742.0,0.2486383]
[1641418363313,4.39803326,43745.0,43742.0,0.57233257]
[1641418363514,2.58698907,43745.0,43742.0,0.57233257]
[1641418363714,0.00128926,43757.0,43742.0,0.57233257]
[1641418363921,1.81104419,43763.0,43747.0,0.02164035]
[1641418364116,1.81104419,43763.0,43758.0,0.57513353]
[1641418364313,1.81104419,43763.0,43758.0,0.66261353]
[1641418364562,1.81104419,43763.0,43761.0,0.39632721]
[1641418364856,0.5347,43770.0,43761.0,0.39632721]
[1641418365061,0.00121455,43769.0,43758.0,0.08748]
[1641418365459,0.287831,43768.0,43758.0,0.08748]
[1641418365660,0.34104,43768.0,43758.0,0.08748]
[1641418365857,1.211335,43767.0,43758.0,0.08748]
[1641418366057,0.57448203,43763.0,43759.0,0.42320743]
[1641418366259,0.57448203,43763.0,43752.0,0.22847686]
[1641418366260,0.57448203,43763.0,43755.0,0.28924228]
[1641418366461,0.92481,43762.0,43755.0,0.28924228]
[1641418366658,0.57448203,43763.0,43752.0,0.114241]
[1641418366862,0.57448203,43763.0,43744.0,0.26684421]
[1641418366863,0.57448203,43763.0,43740.0,0.00122237]
[1641418367059,0.67448203,43763.0,43756.0,0.00016769]
[1641418367259,0.3696,43759.0,43756.0,7.69e-06]
[1641418367460,0.37084688,43757.0,43756.0,7.69e-06]
[1641418367660,0.47084688,43757.0,43756.0,7.69e-06]
[1641418368218,0.89695574,43757.0,43756.0,7.69e-06]
[1641418368415,0.98545574,43757.0,43712.0,0.28633596]
[1641418368619,0.98545574,43757.0,43711.0,0.00127937]
[1641418368620,0.00129804,43735.0,43711.0,0.00127937]
[1641418369020,0.00121093,43727.0,43711.0,0.00127937]
[1641418369216,0.27674495,43726.0,43715.0,0.3379606]
[1641418369415,0.00121093,43727.0,43719.0,0.6364999]
[1641418369815,0.00121093,43727.0,43720.0,11.064838]
[1641418370015,0.20269344,43734.0,43720.0,11.09029]
[1641418370216,0.20269344,43734.0,43721.0,11.313409]
[1641418370414,0.95965109,43730.0,43721.0,11.188043]
[1641418370615,0.95965109,43730.0,43722.0,10.60434567]
[1641418370819,0.95965109,43730.0,43729.0,0.47779641]
[1641418371017,0.95965109,43730.0,43729.0,0.44681595]
[1641418371631,0.95965109,43730.0,43729.0,4.03574701]
[1641418371817,0.95965109,43730.0,43729.0,6.43873481]
[1641418372050,0.13460506,43756.0,43729.0,5.00873481]
[1641418372051,0.95965109,43735.0,43729.0,5.00873481]
[1641418372249,0.95965109,43735.0,43729.0,5.31236481]
[1641418372452,1.50510984,43735.0,43729.0,0.00010275]
[1641418372650,0.18979575,43734.0,43729.0,2.75e-06]
[1641418372853,0.0012165,43730.0,43729.0,2.75e-06]
[1641418373050,0.5093165,43730.0,43729.0,2.75e-06]
[1641418373251,0.74223913,43730.0,43729.0,2.75e-06]
[1641418373449,0.31739445,43711.0,43688.0,0.46818726]
[1641418373655,0.05721888,43722.0,43682.0,0.01336432]
[1641418373656,0.00122225,43705.0,43690.0,0.00125521]
[1641418373847,0.00122225,43705.0,43698.0,0.6618082]
[1641418374650,0.00122225,43705.0,43680.0,0.008]
[1641418374651,0.3375322,43700.0,43685.0,0.00123096]
[1641418374851,0.00120447,43691.0,43680.0,0.00425521]
[1641418375456,0.00128966,43686.0,43680.0,0.00425521]
[1641418375710,2.26,43678.0,43670.0,0.00011]
[1641418375897,2.26,43678.0,43667.0,0.00022]
[1641418375898,0.1,43671.0,43659.0,0.00022]
[1641418376103,0.4081,43677.0,43653.0,0.00033]
[1641418376104,2.86889116,43670.0,43653.0,0.00033]
[1641418376298,0.05729,43663.0,43653.0,0.00033]
[1641418376497,0.057284,43667.0,43654.0,10.0]
[1641418376698,0.13124548,43677.0,43666.0,0.3079368]
[1641418377096,0.13124548,43677.0,43667.0,3.7431]
[1641418377097,0.13113548,43677.0,43667.0,3.7431]
[1641418377298,0.13113548,43677.0,43667.0,7.117713]
[1641418377496,0.13113548,43677.0,43653.0,0.00033]
[1641418377497,0.0011407,43671.0,43653.0,0.00033]
[1641418377696,0.00125675,43668.0,43653.0,0.00033]
[1641418377898,0.40799,43667.0,43653.0,0.00033]
[1641418378098,0.00123033,43656.0,43654.0,10.0]
[1641418378299,0.00125675,43668.0,43654.0,10.67522444]
[1641418378697,0.33566898,43668.0,43655.0,6.35373476]
[1641418378999,0.00115378,43660.0,43653.0,0.00033]
[1641418379462,0.00115378,43660.0,43654.0,0.39124827]
[1641418379463,0.00104378,43660.0,43654.0,0.39124827]
[1641418379848,0.00093378,43660.0,43653.0,0.00033]
[1641418380048,0.00093378,43660.0,43655.0,3.06]
[1641418380249,0.00082378,43660.0,43656.0,0.24867265]
[1641418380448,0.00071378,43660.0,43656.0,0.24867265]
[1641418380653,0.53455566,43678.0,43656.0,0.24867265]
[1641418380654,0.001229,43669.0,43656.0,0.24867265]
[1641418380853,0.00124184,43675.0,43670.0,0.35205066]
[1641418381452,0.00124184,43675.0,43670.0,0.66394395]
[1641418381752,3.096966,43671.0,43670.0,0.66394395]
[1641418381955,0.42,43678.0,43670.0,0.71394395]
[1641418382150,0.42,43678.0,43670.0,0.66394395]
[1641418382453,0.00124341,43675.0,43668.0,2.54555532]
[1641418382652,0.98049816,43677.0,43671.0,0.55292748]
[1641418382853,0.98049816,43674.0,43672.0,0.057224]
[1641418383053,0.98049816,43676.0,43672.0,0.114457]
[1641418383298,0.98049816,43673.0,43672.0,0.164457]
[1641418383498,0.28061399,43681.0,43672.0,0.107233]
[1641418383700,0.10126666,43686.0,43672.0,0.06]
[1641418384000,0.10129667,43673.0,43672.0,0.06]
[1641418384197,0.10129667,43673.0,43670.0,0.06488338]
[1641418384398,0.10129667,43673.0,43664.0,0.64562258]
[1641418384399,0.00124971,43666.0,43664.0,0.64562258]
[1641418384603,0.1,43665.0,43644.0,0.75607072]
[1641418384801,1.29,43645.0,43644.0,0.75607072]
[1641418385000,0.00122842,43645.0,43644.0,0.75607072]
[1641418385198,0.10111842,43645.0,43644.0,0.75607072]
[1641418385398,0.00111842,43645.0,43643.0,0.31344649]
[1641418385601,0.00111842,43645.0,43643.0,1.32363974]
[1641418385801,0.09489,43648.0,43643.0,1.65647155]
[1641418386001,0.24870159,43658.0,43643.0,0.00011]
[1641418386002,0.00124037,43645.0,43643.0,0.00011]
[1641418387056,0.00127617,43656.0,43643.0,0.87814621]
[1641418387262,0.62100146,43656.0,43643.0,0.00011]
[1641418387452,0.09489,43644.0,43643.0,0.00011]
[1641418387653,0.09489,43646.0,43643.0,0.00011]
[1641418388252,0.09489,43646.0,43644.0,10.0]
[1641418388454,0.00124594,43645.0,43644.0,4.39]
[1641418388654,0.00124594,43645.0,43643.0,0.00011]
[1641418388852,0.369609,43644.0,43643.0,0.00011]
[1641418389055,0.469609,43644.0,43625.0,0.00022]
[1641418389256,0.00127029,43634.0,43630.0,0.54691908]
[1641418389453,0.00127029,43634.0,43631.0,0.70040208]
[1641418389857,0.00127029,43634.0,43631.0,0.00011]
[1641418390562,0.06123044,43644.0,43631.0,0.00011]
[1641418390809,0.00123043,43644.0,43631.0,0.00011]
[1641418391010,0.00123043,43644.0,43636.0,0.00016656]